[Event "*** Titled Tuesday Blitz"]
[Site "Chess.com"]
[Date "2021.03.09"]
[Round "7"]
[White "Snegokhod"]
[Black "jraosam"]
[Result "1-0"]
[WhiteElo "2551"]
[BlackElo "1920"]
[TimeControl "180+1"]
[EndTime "11:20:40 PST"]
[Termination "Snegokhod won on time"]

1. e4 {[%clk 0:03:00.9]} 1... e6 {[%clk 0:02:46.7]} 2. d3 {[%clk 0:03:00.7]}
2... d5 {[%clk 0:02:42.8]} 3. Nd2 {[%clk 0:03:00.9]} 3... c5 {[%clk 0:02:33.9]}
4. Ngf3 {[%clk 0:03:01.1]} 4... dxe4 {[%clk 0:02:27.7]} 5. dxe4 {[%clk
0:02:59.2]} 5... Nc6 {[%clk 0:02:21.9]} 6. Bb5 {[%clk 0:02:58.4]} 6... Bd7
{[%clk 0:02:16.6]} 7. O-O {[%clk 0:02:58.3]} 7... Qc7 {[%clk 0:02:12.1]} 8. Qe2
{[%clk 0:02:56.3]} 8... a6 {[%clk 0:02:04.2]} 9. Bxc6 {[%clk 0:02:55.9]} 9...
Bxc6 {[%clk 0:01:59.8]} 10. Nc4 {[%clk 0:02:55.8]} 10... Nf6 {[%clk 0:01:54.5]}
11. e5 {[%clk 0:02:50.3]} 11... Nd5 {[%clk 0:01:50.3]} 12. Bg5 {[%clk
0:02:39.2]} 12... b5 {[%clk 0:01:38.7]} 13. Ne3 {[%clk 0:02:23.5]} 13... Be7
{[%clk 0:01:33.2]} 14. Bxe7 {[%clk 0:02:15.8]} 14... Nf4 {[%clk 0:01:26]} 15.
Qd2 {[%clk 0:02:11.8]} 15... Kxe7 {[%clk 0:01:15.9]} 16. Nf5+ {[%clk 0:02:10.3]}
16... exf5 {[%clk 0:01:08.2]} 17. Qxf4 {[%clk 0:02:10.2]} 17... Rhe8 {[%clk
0:01:00.7]} 18. Qxf5 {[%clk 0:02:09.1]} 18... g6 {[%clk 0:00:50.8]} 19. Qf6+
{[%clk 0:02:05.8]} 19... Kf8 {[%clk 0:00:46.4]} 20. Ng5 {[%clk 0:02:02]} 20...
Kg8 {[%clk 0:00:43]} 21. e6 {[%clk 0:01:53.1]} 21... fxe6 {[%clk 0:00:37.9]} 22.
Rfe1 {[%clk 0:01:46.4]} 22... Bd5 {[%clk 0:00:33.5]} 23. a4 {[%clk 0:01:43.7]}
23... Qe7 {[%clk 0:00:25.3]} 24. Qxe7 {[%clk 0:01:41.9]} 24... Rxe7 {[%clk
0:00:20.4]} 25. axb5 {[%clk 0:01:42.1]} 25... axb5 {[%clk 0:00:10.5]} 26. Rxa8+
{[%clk 0:01:41.1]} 26... Bxa8 {[%clk 0:00:11.4]} 27. Rxe6 {[%clk 0:01:40.7]}
27... Rd7 {[%clk 0:00:09.5]} 28. f3 {[%clk 0:01:36.9]} 28... Bd5 {[%clk
0:00:06.6]} 29. Rb6 {[%clk 0:01:32.4]} 29... Bc4 {[%clk 0:00:06.6]} 30. b3
{[%clk 0:01:31.4]} 30... Rd1+ {[%clk 0:00:04.6]} 31. Kf2 {[%clk 0:01:31]} 31...
Rf1+ {[%clk 0:00:04.9]} 32. Kg3 {[%clk 0:01:30.8]} 32... Be2 {[%clk 0:00:02.1]}
33. Rb7 {[%clk 0:01:28.3]} 33... Rc1 {[%clk 0:00:02.2]} 34. Nxh7 {[%clk
0:01:23.3]} 34... Rxc2 {[%clk 0:00:02.3]} 35. Nf6+ {[%clk 0:01:23.5]} 35... Kf8
{[%clk 0:00:02.1]} 36. Kg4 {[%clk 0:01:23.5]} 1-0

[Event "*** Titled Tuesday Blitz"]
[Site "Chess.com"]
[Date "2021.03.09"]
[Round "7"]
[White "MillyNeuf"]
[Black "beautroll"]
[Result "0-1"]
[WhiteElo "2288"]
[BlackElo "2447"]
[TimeControl "180+1"]
[EndTime "11:20:41 PST"]
[Termination "beautroll won on time"]

1. d4 {[%clk 0:03:00.9]} 1... Nf6 {[%clk 0:02:59.7]} 2. Bf4 {[%clk 0:02:59.9]}
2... c5 {[%clk 0:02:58]} 3. e3 {[%clk 0:02:58.3]} 3... g6 {[%clk 0:02:55.3]} 4.
c3 {[%clk 0:02:57.6]} 4... Bg7 {[%clk 0:02:52]} 5. dxc5 {[%clk 0:02:52.6]} 5...
Nc6 {[%clk 0:02:41.1]} 6. Nf3 {[%clk 0:02:48.9]} 6... O-O {[%clk 0:02:25.3]} 7.
Bd3 {[%clk 0:02:32.8]} 7... Re8 {[%clk 0:02:17.8]} 8. Ne5 {[%clk 0:02:22.1]}
8... Nh5 {[%clk 0:02:08.1]} 9. Nxc6 {[%clk 0:02:18.3]} 9... bxc6 {[%clk
0:02:04.4]} 10. Bg3 {[%clk 0:02:06.6]} 10... e5 {[%clk 0:01:56.8]} 11. Nd2
{[%clk 0:01:48.8]} 11... f5 {[%clk 0:01:52.6]} 12. Qb3+ {[%clk 0:01:19]} 12...
Kh8 {[%clk 0:01:51.1]} 13. f3 {[%clk 0:01:08.8]} 13... Qg5 {[%clk 0:01:24.8]}
14. O-O-O {[%clk 0:00:36]} 14... Qxe3 {[%clk 0:01:20.3]} 15. Bc2 {[%clk
0:00:21.9]} 15... Qxc5 {[%clk 0:01:18.8]} 16. Rhe1 {[%clk 0:00:13.5]} 16... d5
{[%clk 0:01:12.7]} 17. c4 {[%clk 0:00:10.2]} 17... d4 {[%clk 0:01:12]} 18. Bf2
{[%clk 0:00:08.3]} 18... Be6 {[%clk 0:01:10.3]} 19. Qa4 {[%clk 0:00:05.1]} 19...
Rab8 {[%clk 0:01:08.3]} 20. a3 {[%clk 0:00:05.3]} 20... Nf4 {[%clk 0:01:03.2]}
21. b3 {[%clk 0:00:05.2]} 21... Nxg2 {[%clk 0:01:02.2]} 22. Rg1 {[%clk
0:00:05.2]} 22... Nf4 {[%clk 0:01:02.4]} 23. b4 {[%clk 0:00:04.6]} 23... Qd6
{[%clk 0:01:00.9]} 24. c5 {[%clk 0:00:02.4]} 24... Qc7 {[%clk 0:01:00.5]} 25.
Bg3 {[%clk 0:00:01.9]} 25... Ne2+ {[%clk 0:01:00.2]} 26. Kb1 {[%clk 0:00:01.7]}
26... Nc3+ {[%clk 0:01:00.1]} 0-1

[Event "*** Titled Tuesday Blitz"]
[Site "Chess.com"]
[Date "2021.03.09"]
[Round "7"]
[White "grandcoach"]
[Black "IljaJoke"]
[Result "0-1"]
[WhiteElo "2259"]
[BlackElo "2476"]
[TimeControl "180+1"]
[EndTime "11:20:42 PST"]
[Termination "IljaJoke won on time"]

1. e4 {[%clk 0:03:00.9]} 1... c5 {[%clk 0:02:59.1]} 2. b4 {[%clk 0:03:00.2]}
2... cxb4 {[%clk 0:02:56]} 3. a3 {[%clk 0:03:00.1]} 3... d5 {[%clk 0:02:39.8]}
4. exd5 {[%clk 0:02:59]} 4... Qxd5 {[%clk 0:02:39.3]} 5. Bb2 {[%clk 0:02:59.6]}
5... e5 {[%clk 0:02:34.5]} 6. Nf3 {[%clk 0:02:59]} 6... Nc6 {[%clk 0:02:32]} 7.
c4 {[%clk 0:02:59.3]} 7... Qd6 {[%clk 0:02:29.2]} 8. axb4 {[%clk 0:02:52.4]}
8... Qxb4 {[%clk 0:02:30.1]} 9. Bxe5 {[%clk 0:02:38.6]} 9... Nxe5 {[%clk
0:02:30.1]} 10. Nxe5 {[%clk 0:02:39.3]} 10... Nf6 {[%clk 0:02:30.7]} 11. Nc3
{[%clk 0:02:35.1]} 11... Bd6 {[%clk 0:02:28.7]} 12. Rb1 {[%clk 0:01:49.4]} 12...
Qa5 {[%clk 0:02:06.6]} 13. Rb5 {[%clk 0:01:32.6]} 13... Qc7 {[%clk 0:01:55.8]}
14. d4 {[%clk 0:01:21.6]} 14... a6 {[%clk 0:01:51.8]} 15. Rb2 {[%clk 0:01:09.7]}
15... O-O {[%clk 0:01:48.8]} 16. Be2 {[%clk 0:00:53.7]} 16... Bxe5 {[%clk
0:01:46.6]} 17. dxe5 {[%clk 0:00:54.6]} 17... Qxe5 {[%clk 0:01:47]} 18. Qb3
{[%clk 0:00:42.9]} 18... b5 {[%clk 0:01:37.1]} 19. cxb5 {[%clk 0:00:36.8]} 19...
axb5 {[%clk 0:01:37.3]} 20. O-O {[%clk 0:00:36.5]} 20... Be6 {[%clk 0:01:19.3]}
21. Qb4 {[%clk 0:00:29]} 21... Bc4 {[%clk 0:01:00.6]} 22. Re1 {[%clk 0:00:11.2]}
22... Rab8 {[%clk 0:00:48.9]} 23. Kf1 {[%clk 0:00:04]} 23... Bxe2+ {[%clk
0:00:46.4]} 24. Rexe2 {[%clk 0:00:03.5]} 24... Qxh2 {[%clk 0:00:46.5]} 0-1

[Event "*** Titled Tuesday Blitz"]
[Site "Chess.com"]
[Date "2021.03.09"]
[Round "7"]
[White "Pantata007"]
[Black "suneebaker"]
[Result "0-1"]
[WhiteElo "2292"]
[BlackElo "2222"]
[TimeControl "180+1"]
[EndTime "11:20:43 PST"]
[Termination "suneebaker won on time"]

1. d4 {[%clk 0:03:00.9]} 1... Nf6 {[%clk 0:02:59.3]} 2. c4 {[%clk 0:03:00.2]}
2... e6 {[%clk 0:02:59]} 3. Nc3 {[%clk 0:02:59.6]} 3... Bb4 {[%clk 0:02:58.9]}
4. e3 {[%clk 0:02:58.7]} 4... d5 {[%clk 0:02:56.6]} 5. a3 {[%clk 0:02:57.5]}
5... Bxc3+ {[%clk 0:02:55.8]} 6. bxc3 {[%clk 0:02:58.4]} 6... c5 {[%clk
0:02:54.5]} 7. Bd3 {[%clk 0:02:49.5]} 7... Nc6 {[%clk 0:02:54]} 8. cxd5 {[%clk
0:02:45.2]} 8... exd5 {[%clk 0:02:52.5]} 9. Ne2 {[%clk 0:02:45.5]} 9... O-O
{[%clk 0:02:46.2]} 10. O-O {[%clk 0:02:45.7]} 10... Re8 {[%clk 0:02:38.9]} 11.
Ng3 {[%clk 0:02:43.3]} 11... Ne4 {[%clk 0:02:14.5]} 12. Qc2 {[%clk 0:02:33.4]}
12... Qe7 {[%clk 0:02:02.4]} 13. a4 {[%clk 0:02:04.8]} 13... c4 {[%clk
0:01:41.1]} 14. Bxe4 {[%clk 0:01:50.4]} 14... dxe4 {[%clk 0:01:40.2]} 15. Ba3
{[%clk 0:01:51.3]} 15... Qh4 {[%clk 0:01:33.8]} 16. Rab1 {[%clk 0:01:37.6]}
16... b6 {[%clk 0:01:31.1]} 17. Rb5 {[%clk 0:01:31.5]} 17... g6 {[%clk
0:01:26.8]} 18. Bc1 {[%clk 0:00:50.6]} 18... Bb7 {[%clk 0:01:23.6]} 19. f3
{[%clk 0:00:38.5]} 19... Na5 {[%clk 0:01:09.5]} 20. d5 {[%clk 0:00:17.5]} 20...
a6 {[%clk 0:01:03.2]} 21. Rxb6 {[%clk 0:00:16.2]} 21... Bxd5 {[%clk 0:01:02.9]}
22. fxe4 {[%clk 0:00:10.2]} 22... Bxe4 {[%clk 0:01:02.5]} 23. Qf2 {[%clk
0:00:03.3]} 23... Rf8 {[%clk 0:00:54.2]} 24. Qf6 {[%clk 0:00:01.4]} 24... Bd3
{[%clk 0:00:49.2]} 0-1

[Event "*** Titled Tuesday Blitz"]
[Site "Chess.com"]
[Date "2021.03.09"]
[Round "7"]
[White "AlphaZ3r0"]
[Black "Joseacorrea"]
[Result "1-0"]
[WhiteElo "2255"]
[BlackElo "2084"]
[TimeControl "180+1"]
[EndTime "11:20:44 PST"]
[Termination "AlphaZ3r0 won on time"]

1. g3 {[%clk 0:02:42]} 1... g6 {[%clk 0:02:53.4]} 2. Bg2 {[%clk 0:02:42.9]} 2...
Bg7 {[%clk 0:02:53.8]} 3. c4 {[%clk 0:02:42.2]} 3... Nf6 {[%clk 0:02:53.5]} 4.
Nf3 {[%clk 0:02:42.7]} 4... O-O {[%clk 0:02:53.4]} 5. O-O {[%clk 0:02:43.2]}
5... d6 {[%clk 0:02:52.2]} 6. Nc3 {[%clk 0:02:41.7]} 6... Nbd7 {[%clk
0:02:51.1]} 7. Rb1 {[%clk 0:02:34.7]} 7... c6 {[%clk 0:02:45.4]} 8. b4 {[%clk
0:02:33.8]} 8... Re8 {[%clk 0:02:39.6]} 9. b5 {[%clk 0:02:32.8]} 9... c5 {[%clk
0:02:38.8]} 10. Bb2 {[%clk 0:02:27.4]} 10... Rb8 {[%clk 0:02:34.9]} 11. d4
{[%clk 0:02:26.4]} 11... b6 {[%clk 0:02:33.8]} 12. e4 {[%clk 0:02:23.5]} 12...
Bb7 {[%clk 0:02:29.7]} 13. d5 {[%clk 0:02:11.2]} 13... a6 {[%clk 0:02:05]} 14.
bxa6 {[%clk 0:02:10]} 14... Bxa6 {[%clk 0:02:04.8]} 15. Qe2 {[%clk 0:02:07.2]}
15... e6 {[%clk 0:01:46]} 16. dxe6 {[%clk 0:01:56.6]} 16... Rxe6 {[%clk
0:01:46.9]} 17. Rfd1 {[%clk 0:01:54.5]} 17... h6 {[%clk 0:01:29.1]} 18. Bh3
{[%clk 0:01:52.8]} 18... Qe7 {[%clk 0:00:34.1]} 19. Bxe6 {[%clk 0:01:39.7]}
19... Qxe6 {[%clk 0:00:35]} 20. Nd2 {[%clk 0:01:32.5]} 20... Ne5 {[%clk
0:00:30.4]} 21. Nb5 {[%clk 0:01:27.6]} 21... Bxb5 {[%clk 0:00:22.7]} 22. cxb5
{[%clk 0:01:26.1]} 22... Qh3 {[%clk 0:00:21.4]} 23. Bxe5 {[%clk 0:01:23.3]}
23... Ng4 {[%clk 0:00:17.2]} 24. Nf3 {[%clk 0:01:17.5]} 24... Bxe5 {[%clk
0:00:15.2]} 25. Qf1 {[%clk 0:01:12.8]} 25... Qh5 {[%clk 0:00:13.2]} 26. h3
{[%clk 0:01:09.7]} 26... Nf6 {[%clk 0:00:12.8]} 27. g4 {[%clk 0:01:07.7]} 27...
Nxg4 {[%clk 0:00:10.4]} 28. hxg4 {[%clk 0:01:08.6]} 28... Qxg4+ {[%clk
0:00:10.9]} 29. Qg2 {[%clk 0:01:09.3]} 29... Qxe4 {[%clk 0:00:11.5]} 30. Re1
{[%clk 0:01:07.9]} 30... Qf5 {[%clk 0:00:09.5]} 31. Nxe5 {[%clk 0:01:07.6]}
31... dxe5 {[%clk 0:00:10.4]} 32. Rbd1 {[%clk 0:01:07.6]} 32... Ra8 {[%clk
0:00:09.3]} 33. Qxa8+ {[%clk 0:01:06.8]} 1-0

[Event "*** Titled Tuesday Blitz"]
[Site "Chess.com"]
[Date "2021.03.09"]
[Round "7"]
[White "03revilo"]
[Black "Koalaskakistis"]
[Result "1-0"]
[WhiteElo "2329"]
[BlackElo "2528"]
[TimeControl "180+1"]
[EndTime "11:20:47 PST"]
[Termination "03revilo won by checkmate"]

1. c4 {[%clk 0:03:00.9]} 1... Nf6 {[%clk 0:02:58]} 2. Nc3 {[%clk 0:02:58.5]}
2... g6 {[%clk 0:02:57.8]} 3. Nf3 {[%clk 0:02:57.2]} 3... Bg7 {[%clk 0:02:58]}
4. g3 {[%clk 0:02:55.9]} 4... O-O {[%clk 0:02:58.1]} 5. Bg2 {[%clk 0:02:50.1]}
5... d6 {[%clk 0:02:52.3]} 6. O-O {[%clk 0:02:51]} 6... e5 {[%clk 0:02:47.4]} 7.
d4 {[%clk 0:02:50.7]} 7... exd4 {[%clk 0:02:46.4]} 8. Nxd4 {[%clk 0:02:50.5]}
8... Re8 {[%clk 0:02:24.8]} 9. b3 {[%clk 0:02:49.6]} 9... c6 {[%clk 0:02:17]}
10. Bb2 {[%clk 0:02:48]} 10... Qc7 {[%clk 0:02:09.5]} 11. Qc2 {[%clk 0:02:38.7]}
11... Nbd7 {[%clk 0:02:07.8]} 12. Rad1 {[%clk 0:02:37.6]} 12... a5 {[%clk
0:02:06.5]} 13. h3 {[%clk 0:02:34.8]} 13... Nc5 {[%clk 0:02:06]} 14. Rfe1 {[%clk
0:02:32.3]} 14... Nfd7 {[%clk 0:02:01.8]} 15. e4 {[%clk 0:02:18.8]} 15... h5
{[%clk 0:01:12.7]} 16. f4 {[%clk 0:01:28.1]} 16... h4 {[%clk 0:00:57.8]} 17. g4
{[%clk 0:01:26.1]} 17... d5 {[%clk 0:00:57.9]} 18. e5 {[%clk 0:01:24]} 18...
dxc4 {[%clk 0:00:57.6]} 19. bxc4 {[%clk 0:01:24.9]} 19... Nb6 {[%clk 0:00:48]}
20. Ne4 {[%clk 0:01:21]} 20... Nxe4 {[%clk 0:00:47.3]} 21. Bxe4 {[%clk
0:01:19.1]} 21... g5 {[%clk 0:00:47.2]} 22. Nf5 {[%clk 0:01:17.1]} 22... Bxf5
{[%clk 0:00:46.7]} 23. gxf5 {[%clk 0:00:59.5]} 23... gxf4 {[%clk 0:00:45.8]} 24.
f6 {[%clk 0:00:59.7]} 24... Bh6 {[%clk 0:00:45.6]} 25. Kh1 {[%clk 0:00:49.5]}
25... Kh8 {[%clk 0:00:39.9]} 26. Qf2 {[%clk 0:00:44.9]} 26... Bg5 {[%clk
0:00:32.3]} 27. Rg1 {[%clk 0:00:44.2]} 27... Rxe5 {[%clk 0:00:31.8]} 28. Rxg5
{[%clk 0:00:43.1]} 28... Rxg5 {[%clk 0:00:27.5]} 29. Qxh4+ {[%clk 0:00:42.8]}
29... Kg8 {[%clk 0:00:28.4]} 30. Qxg5+ {[%clk 0:00:40.2]} 30... Kf8 {[%clk
0:00:29.3]} 31. Qg7+ {[%clk 0:00:35.6]} 31... Ke8 {[%clk 0:00:30.2]} 32. Qg8#
{[%clk 0:00:35.2]} 1-0

[Event "*** Titled Tuesday Blitz"]
[Site "Chess.com"]
[Date "2021.03.09"]
[Round "7"]
[White "BillieKimbah"]
[Black "Aygehovit1992"]
[Result "1-0"]
[WhiteElo "2869"]
[BlackElo "2642"]
[TimeControl "180+1"]
[EndTime "11:20:51 PST"]
[Termination "BillieKimbah won by checkmate"]

1. Nf3 {[%clk 0:03:00.9]} 1... Nf6 {[%clk 0:02:58.2]} 2. g3 {[%clk 0:03:01.1]}
2... g6 {[%clk 0:02:58.3]} 3. Bg2 {[%clk 0:03:01.8]} 3... Bg7 {[%clk 0:02:59.2]}
4. O-O {[%clk 0:03:02.4]} 4... O-O {[%clk 0:02:59.6]} 5. d4 {[%clk 0:03:03]}
5... d5 {[%clk 0:02:59.4]} 6. c3 {[%clk 0:03:02.5]} 6... Bf5 {[%clk 0:02:56.3]}
7. a4 {[%clk 0:02:55.1]} 7... Nbd7 {[%clk 0:02:53.6]} 8. Nh4 {[%clk 0:02:54.7]}
8... Be4 {[%clk 0:02:51.2]} 9. Bh3 {[%clk 0:02:44.8]} 9... c5 {[%clk 0:02:16.9]}
10. Na3 {[%clk 0:02:41.9]} 10... cxd4 {[%clk 0:02:07.3]} 11. cxd4 {[%clk
0:02:41.7]} 11... e6 {[%clk 0:01:51]} 12. f3 {[%clk 0:02:41.7]} 12... Bf5 {[%clk
0:01:50.2]} 13. g4 {[%clk 0:02:41.3]} 13... Nxg4 {[%clk 0:01:03.3]} 14. Nxf5
{[%clk 0:02:40.9]} 14... gxf5 {[%clk 0:01:02.7]} 15. fxg4 {[%clk 0:02:40.4]}
15... Qh4 {[%clk 0:01:03.1]} 16. Bg2 {[%clk 0:02:10.7]} 16... fxg4 {[%clk
0:01:02.1]} 17. Bf4 {[%clk 0:02:09.8]} 17... Rac8 {[%clk 0:00:53.7]} 18. e3
{[%clk 0:02:03.9]} 18... f5 {[%clk 0:00:51.7]} 19. Nb5 {[%clk 0:02:03]} 19...
Bh6 {[%clk 0:00:10.5]} 20. Nxa7 {[%clk 0:01:41.1]} 20... Bxf4 {[%clk 0:00:10.2]}
21. exf4 {[%clk 0:01:42]} 21... Rc4 {[%clk 0:00:09.5]} 22. Nb5 {[%clk
0:01:40.3]} 22... Nf6 {[%clk 0:00:08]} 23. b3 {[%clk 0:01:31.4]} 23... Rc6
{[%clk 0:00:07]} 24. Qe1 {[%clk 0:01:24.2]} 24... Qh6 {[%clk 0:00:06]} 25. Na7
{[%clk 0:01:22.4]} 25... Rd6 {[%clk 0:00:05]} 26. Nb5 {[%clk 0:01:19.9]} 26...
Rc6 {[%clk 0:00:04.9]} 27. Qe5 {[%clk 0:01:11.7]} 27... Ne4 {[%clk 0:00:04.5]}
28. Rac1 {[%clk 0:01:11.1]} 28... Rxc1 {[%clk 0:00:04]} 29. Rxc1 {[%clk
0:01:12]} 29... Re8 {[%clk 0:00:02.2]} 30. Rc7 {[%clk 0:01:09.8]} 30... g3
{[%clk 0:00:01.5]} 31. hxg3 {[%clk 0:01:08.7]} 31... Nxg3 {[%clk 0:00:02]} 32.
Nd6 {[%clk 0:01:07.8]} 32... Rf8 {[%clk 0:00:01.6]} 33. Rxb7 {[%clk 0:01:04.8]}
33... Qxf4 {[%clk 0:00:02]} 34. Qg7# {[%clk 0:01:03.8]} 1-0

[Event "*** Titled Tuesday Blitz"]
[Site "Chess.com"]
[Date "2021.03.09"]
[Round "7"]
[White "Natalya_Buksa"]
[Black "alexrustemov"]
[Result "0-1"]
[WhiteElo "2532"]
[BlackElo "2758"]
[TimeControl "180+1"]
[EndTime "11:20:53 PST"]
[Termination "alexrustemov won on time"]

1. e4 {[%clk 0:03:00.9]} 1... e6 {[%clk 0:02:59.4]} 2. d4 {[%clk 0:03:00.6]}
2... d5 {[%clk 0:02:59.5]} 3. Nd2 {[%clk 0:03:01.2]} 3... c5 {[%clk 0:02:58.7]}
4. Ngf3 {[%clk 0:03:01.2]} 4... Nf6 {[%clk 0:02:57.7]} 5. e5 {[%clk 0:02:54.7]}
5... Nfd7 {[%clk 0:02:57.1]} 6. c3 {[%clk 0:02:55.6]} 6... b6 {[%clk 0:02:57.3]}
7. Bd3 {[%clk 0:02:55.6]} 7... Ba6 {[%clk 0:02:56.9]} 8. Qe2 {[%clk 0:02:53.9]}
8... Bxd3 {[%clk 0:02:55.3]} 9. Qxd3 {[%clk 0:02:54.8]} 9... Nc6 {[%clk
0:02:55]} 10. O-O {[%clk 0:02:54.3]} 10... Be7 {[%clk 0:02:52]} 11. Ne1 {[%clk
0:02:54.5]} 11... Rc8 {[%clk 0:02:47.9]} 12. Kh1 {[%clk 0:02:48.4]} 12... O-O
{[%clk 0:02:31.6]} 13. f4 {[%clk 0:02:47]} 13... cxd4 {[%clk 0:02:28]} 14. cxd4
{[%clk 0:02:45.8]} 14... Nb4 {[%clk 0:02:26.9]} 15. Qb3 {[%clk 0:02:27.4]} 15...
Qc7 {[%clk 0:02:23.9]} 16. Ndf3 {[%clk 0:02:05.5]} 16... Nc2 {[%clk 0:02:15.9]}
17. Nxc2 {[%clk 0:02:04.8]} 17... Qxc2 {[%clk 0:02:16.5]} 18. Qe3 {[%clk
0:02:05.2]} 18... Rc6 {[%clk 0:01:57.4]} 19. h3 {[%clk 0:01:26.7]} 19... Rfc8
{[%clk 0:01:56.5]} 20. Kh2 {[%clk 0:01:14.3]} 20... b5 {[%clk 0:01:51.2]} 21.
Rf2 {[%clk 0:01:14.2]} 21... Qe4 {[%clk 0:01:45.9]} 22. Bd2 {[%clk 0:00:59.5]}
22... Rc2 {[%clk 0:01:39.9]} 23. b3 {[%clk 0:00:52.8]} 23... Ba3 {[%clk
0:01:30.7]} 24. Re1 {[%clk 0:00:51.2]} 24... Rxa2 {[%clk 0:01:24.1]} 25. Qe2
{[%clk 0:00:33.9]} 25... Qxe2 {[%clk 0:01:23.2]} 26. Rfxe2 {[%clk 0:00:28.6]}
26... Rcc2 {[%clk 0:01:21.6]} 27. Kg3 {[%clk 0:00:28.5]} 27... Bb4 {[%clk
0:01:15.3]} 28. Bxb4 {[%clk 0:00:16.2]} 28... Rxe2 {[%clk 0:01:14.7]} 29. Rc1
{[%clk 0:00:16.7]} 29... Rxg2+ {[%clk 0:01:13.6]} 30. Kh4 {[%clk 0:00:16.6]}
30... Rgc2 {[%clk 0:01:12.3]} 31. Rg1 {[%clk 0:00:16.2]} 31... a5 {[%clk
0:01:07.6]} 32. Bd6 {[%clk 0:00:15.5]} 32... h6 {[%clk 0:01:02.9]} 33. Be7
{[%clk 0:00:07.8]} 33... Kh7 {[%clk 0:01:01]} 0-1

[Event "*** Titled Tuesday Blitz"]
[Site "Chess.com"]
[Date "2021.03.09"]
[Round "7"]
[White "Handszar"]
[Black "hypert"]
[Result "0-1"]
[WhiteElo "2371"]
[BlackElo "2508"]
[TimeControl "180+1"]
[EndTime "11:20:53 PST"]
[Termination "hypert won on time"]

1. e4 {[%clk 0:03:00.9]} 1... c5 {[%clk 0:02:59.3]} 2. Nf3 {[%clk 0:02:58.3]}
2... Nc6 {[%clk 0:02:59.8]} 3. Bb5 {[%clk 0:02:57.1]} 3... e6 {[%clk 0:02:59.9]}
4. O-O {[%clk 0:02:56.9]} 4... Nge7 {[%clk 0:03:00.3]} 5. d4 {[%clk 0:02:56.8]}
5... cxd4 {[%clk 0:02:59.8]} 6. Nxd4 {[%clk 0:02:56.8]} 6... a6 {[%clk
0:02:59.6]} 7. Be2 {[%clk 0:02:54.3]} 7... Nxd4 {[%clk 0:02:59]} 8. Qxd4 {[%clk
0:02:55.2]} 8... Nc6 {[%clk 0:02:59.1]} 9. Qc3 {[%clk 0:02:54.6]} 9... b5 {[%clk
0:02:57.1]} 10. Qg3 {[%clk 0:02:38.4]} 10... h5 {[%clk 0:02:55.1]} 11. h4 {[%clk
0:02:25.8]} 11... Bb7 {[%clk 0:02:45.2]} 12. Bg5 {[%clk 0:02:14]} 12... Qb6
{[%clk 0:02:35.4]} 13. Nc3 {[%clk 0:02:08.6]} 13... Bc5 {[%clk 0:02:24.8]} 14.
Rad1 {[%clk 0:02:03.3]} 14... Bd4 {[%clk 0:02:14.3]} 15. Rd2 {[%clk 0:01:21.2]}
15... Be5 {[%clk 0:02:08.1]} 16. Bf4 {[%clk 0:01:16]} 16... Qc7 {[%clk
0:02:06.1]} 17. Bxe5 {[%clk 0:00:49.6]} 17... Qxe5 {[%clk 0:02:03.7]} 18. f4
{[%clk 0:00:50.1]} 18... Qc5+ {[%clk 0:02:01.9]} 19. Kh2 {[%clk 0:00:49.4]}
19... g6 {[%clk 0:01:56.7]} 20. Rfd1 {[%clk 0:00:33.9]} 20... O-O-O {[%clk
0:01:56.5]} 21. e5 {[%clk 0:00:32.2]} 21... Ne7 {[%clk 0:01:52.8]} 22. Bd3
{[%clk 0:00:23.4]} 22... Nf5 {[%clk 0:01:48]} 23. Qe1 {[%clk 0:00:20.5]} 23...
Ne3 {[%clk 0:01:34.9]} 24. b4 {[%clk 0:00:15.7]} 24... Qb6 {[%clk 0:01:11]} 25.
Ra1 {[%clk 0:00:14.2]} 25... Qd4 {[%clk 0:00:55.6]} 26. Ne2 {[%clk 0:00:12.3]}
26... Ng4+ {[%clk 0:00:52.9]} 27. Kh1 {[%clk 0:00:08.3]} 27... Qe3 {[%clk
0:00:45.2]} 0-1

[Event "*** Titled Tuesday Blitz"]
[Site "Chess.com"]
[Date "2021.03.09"]
[Round "7"]
[White "Onischuk_V"]
[Black "jefferyx"]
[Result "0-1"]
[WhiteElo "2828"]
[BlackElo "3016"]
[TimeControl "180+1"]
[EndTime "11:20:55 PST"]
[Termination "jefferyx won by resignation"]

1. Nf3 {[%clk 0:03:00.9]} 1... d5 {[%clk 0:03:00.1]} 2. g3 {[%clk 0:03:01.3]}
2... Nd7 {[%clk 0:03:00.6]} 3. Bg2 {[%clk 0:03:01.4]} 3... e5 {[%clk 0:02:57.7]}
4. O-O {[%clk 0:03:01.8]} 4... Bd6 {[%clk 0:02:58.1]} 5. d3 {[%clk 0:02:50.8]}
5... c6 {[%clk 0:02:55.9]} 6. Nc3 {[%clk 0:02:49.7]} 6... Ne7 {[%clk 0:02:53.2]}
7. e4 {[%clk 0:02:49.6]} 7... d4 {[%clk 0:02:52.7]} 8. Ne2 {[%clk 0:02:43.5]}
8... O-O {[%clk 0:02:53.6]} 9. Nd2 {[%clk 0:02:42.4]} 9... c5 {[%clk 0:02:50.5]}
10. f4 {[%clk 0:02:42.4]} 10... f6 {[%clk 0:02:51.1]} 11. a4 {[%clk 0:02:38.5]}
11... Nc6 {[%clk 0:02:50.2]} 12. Bh3 {[%clk 0:02:33.4]} 12... Nb6 {[%clk
0:02:17.7]} 13. Bxc8 {[%clk 0:02:31.6]} 13... Rxc8 {[%clk 0:02:18.6]} 14. b3
{[%clk 0:02:22.2]} 14... exf4 {[%clk 0:02:09.7]} 15. Nxf4 {[%clk 0:02:15.1]}
15... Bxf4 {[%clk 0:02:04.5]} 16. Rxf4 {[%clk 0:02:15.1]} 16... Nd7 {[%clk
0:02:01]} 17. Nc4 {[%clk 0:02:13.1]} 17... Nde5 {[%clk 0:02:01.2]} 18. Rf5
{[%clk 0:02:10]} 18... Qd7 {[%clk 0:01:52]} 19. Bd2 {[%clk 0:02:04.1]} 19... b6
{[%clk 0:01:48.1]} 20. Qe2 {[%clk 0:02:01.5]} 20... Rce8 {[%clk 0:01:47.8]} 21.
Nxe5 {[%clk 0:01:54.6]} 21... Rxe5 {[%clk 0:01:42.5]} 22. Raf1 {[%clk
0:01:52.7]} 22... Rxf5 {[%clk 0:01:27.9]} 23. Rxf5 {[%clk 0:01:52.1]} 23... g6
{[%clk 0:01:25.6]} 24. Rd5 {[%clk 0:01:46]} 24... Qe6 {[%clk 0:01:10.3]} 25. Bf4
{[%clk 0:01:45.6]} 25... Rd8 {[%clk 0:01:10.7]} 26. Qf3 {[%clk 0:01:38.7]} 26...
h5 {[%clk 0:00:53.5]} 27. Kg2 {[%clk 0:01:37.3]} 27... Kg7 {[%clk 0:00:47.2]}
28. h3 {[%clk 0:01:36.1]} 28... Qe7 {[%clk 0:00:45.3]} 29. g4 {[%clk 0:01:30.8]}
29... g5 {[%clk 0:00:42.8]} 30. Bg3 {[%clk 0:01:27.7]} 30... h4 {[%clk
0:00:40.3]} 31. Bh2 {[%clk 0:01:26.3]} 31... Rxd5 {[%clk 0:00:34.6]} 32. exd5
{[%clk 0:01:26.1]} 32... Nb4 {[%clk 0:00:35.5]} 33. d6 {[%clk 0:01:20.1]} 33...
Qd7 {[%clk 0:00:35.7]} 34. Qe2 {[%clk 0:01:13.8]} 34... Kf7 {[%clk 0:00:35.8]}
35. Kf2 {[%clk 0:01:04.8]} 35... Qe6 {[%clk 0:00:35.7]} 36. Qf3 {[%clk
0:00:54.3]} 36... Nxc2 {[%clk 0:00:34.5]} 37. Qb7+ {[%clk 0:00:54.1]} 37... Kg6
{[%clk 0:00:34.6]} 38. d7 {[%clk 0:00:50.8]} 38... Qe1+ {[%clk 0:00:32.2]} 39.
Kf3 {[%clk 0:00:40.8]} 39... Qf1+ {[%clk 0:00:32.3]} 0-1